[Event "Late-Titled-Tuesday-Blitz-May-14-2024"]
[Site "Chess.com"]
[Date "2024.05.14"]
[Round "9"]
[White "Magicmaster17"]
[Black "GoltsevDmitry2000"]
[Result "1-0"]
[WhiteElo "2894"]
[BlackElo "2743"]
[TimeControl "180+1"]
[EndTime "15:45:19 PDT"]
[Termination "Magicmaster17 won by checkmate"]

1. c4 {[%clk 0:03:00.9]} 1... e5 {[%clk 0:02:59.7]} 2. Nc3 {[%clk 0:03:00.5]}
2... Bb4 {[%clk 0:02:59.1]} 3. Nd5 {[%clk 0:02:59.5]} 3... Bc5 {[%clk
0:02:58.7]} 4. Nf3 {[%clk 0:03:00.1]} 4... e4 {[%clk 0:02:54.8]} 5. d4 {[%clk
0:02:56.4]} 5... Bf8 {[%clk 0:02:53.8]} 6. Nd2 {[%clk 0:02:33.5]} 6... c6 {[%clk
0:02:51.1]} 7. Nc3 {[%clk 0:02:33.6]} 7... d5 {[%clk 0:02:51.2]} 8. cxd5 {[%clk
0:02:05.5]} 8... cxd5 {[%clk 0:02:52.1]} 9. Nb3 {[%clk 0:02:06]} 9... Nc6 {[%clk
0:02:48.9]} 10. Bf4 {[%clk 0:02:05.5]} 10... a6 {[%clk 0:02:39.1]} 11. e3 {[%clk
0:02:02.8]} 11... Nge7 {[%clk 0:02:34.3]} 12. Rc1 {[%clk 0:02:00]} 12... Ng6
{[%clk 0:02:33]} 13. Bg3 {[%clk 0:02:00.3]} 13... Be7 {[%clk 0:02:29.5]} 14. Be2
{[%clk 0:01:53.5]} 14... O-O {[%clk 0:02:26.4]} 15. O-O {[%clk 0:01:53.2]} 15...
Be6 {[%clk 0:01:59.5]} 16. Na4 {[%clk 0:01:51.8]} 16... f5 {[%clk 0:01:48.8]}
17. Nbc5 {[%clk 0:01:38.4]} 17... Bc8 {[%clk 0:01:48.4]} 18. f4 {[%clk
0:01:38.2]} 18... Rf6 {[%clk 0:01:25.7]} 19. Qb3 {[%clk 0:01:34.6]} 19... Na5
{[%clk 0:01:15.7]} 20. Qc3 {[%clk 0:01:29]} 20... b5 {[%clk 0:01:12.7]} 21. b4
{[%clk 0:00:59.5]} 21... Nc4 {[%clk 0:01:12.8]} 22. Nb2 {[%clk 0:00:59.7]} 22...
Rc6 {[%clk 0:00:57.3]} 23. a4 {[%clk 0:00:58.7]} 23... Nf8 {[%clk 0:00:46.6]}
24. Ra1 {[%clk 0:00:56.5]} 24... Be6 {[%clk 0:00:38.4]} 25. Ra2 {[%clk
0:00:50.3]} 25... Bf7 {[%clk 0:00:31.5]} 26. Rfa1 {[%clk 0:00:49.4]} 26... Rcc8
{[%clk 0:00:27.9]} 27. Nd1 {[%clk 0:00:23.8]} 27... Bf6 {[%clk 0:00:26.5]} 28.
Qc1 {[%clk 0:00:21.9]} 28... Ne6 {[%clk 0:00:24.6]} 29. Bf2 {[%clk 0:00:19.7]}
29... g5 {[%clk 0:00:22.2]} 30. g3 {[%clk 0:00:19.6]} 30... gxf4 {[%clk
0:00:19]} 31. gxf4 {[%clk 0:00:20.5]} 31... Kh8 {[%clk 0:00:18.6]} 32. Kh1
{[%clk 0:00:20.4]} 32... Bh4 {[%clk 0:00:13]} 33. Bg1 {[%clk 0:00:18.9]} 33...
Qg8 {[%clk 0:00:06.9]} 34. Nc3 {[%clk 0:00:18.1]} 34... Qg6 {[%clk 0:00:05.6]}
35. axb5 {[%clk 0:00:17.2]} 35... Rg8 {[%clk 0:00:05.8]} 36. Qf1 {[%clk
0:00:17.1]} 36... Ra7 {[%clk 0:00:02.2]} 37. bxa6 {[%clk 0:00:16.7]} 37... Nxd4
{[%clk 0:00:02.1]} 38. exd4 {[%clk 0:00:16.7]} 38... e3 {[%clk 0:00:02.6]} 39.
Bf3 {[%clk 0:00:16.6]} 39... Be6 {[%clk 0:00:02.7]} 40. Rg2 {[%clk 0:00:16.2]}
40... Qf7 {[%clk 0:00:02]} 41. Rxg8+ {[%clk 0:00:15.4]} 41... Qxg8 {[%clk
0:00:02.9]} 42. Qh3 {[%clk 0:00:15.5]} 42... Bf6 {[%clk 0:00:02.5]} 43. Qg2
{[%clk 0:00:15.2]} 43... Qf7 {[%clk 0:00:02.3]} 44. Bxd5 {[%clk 0:00:14.7]}
44... Bxd4 {[%clk 0:00:01.9]} 45. Bxe6 {[%clk 0:00:14.7]} 45... Qf8 {[%clk
0:00:02.4]} 46. Rc1 {[%clk 0:00:12.5]} 46... Rg7 {[%clk 0:00:02.8]} 47. Qf3
{[%clk 0:00:11.9]} 47... Nd2 {[%clk 0:00:02.7]} 48. Qe2 {[%clk 0:00:10.5]} 48...
Qa8+ {[%clk 0:00:03.3]} 49. Bd5 {[%clk 0:00:10.2]} 49... Qd8 {[%clk 0:00:03.4]}
50. Ne6 {[%clk 0:00:09.8]} 50... Qh4 {[%clk 0:00:02.5]} 51. Nxg7 {[%clk
0:00:09.7]} 51... Kxg7 {[%clk 0:00:03]} 52. Qg2+ {[%clk 0:00:10]} 52... Kf6
{[%clk 0:00:02.8]} 53. a7 {[%clk 0:00:10.6]} 53... Bxa7 {[%clk 0:00:02.4]} 54.
Ne2 {[%clk 0:00:10]} 54... Ne4 {[%clk 0:00:01.7]} 55. Rc6+ {[%clk 0:00:09.9]}
55... Ke7 {[%clk 0:00:02.1]} 56. Ng3 {[%clk 0:00:10.1]} 56... Nf2+ {[%clk
0:00:01.8]} 57. Bxf2 {[%clk 0:00:10.2]} 57... exf2 {[%clk 0:00:02.7]} 58. Rc1
{[%clk 0:00:10.6]} 58... Qg4 {[%clk 0:00:02.8]} 59. Rf1 {[%clk 0:00:10.9]} 59...
Kf6 {[%clk 0:00:03.3]} 60. Qf3 {[%clk 0:00:11.2]} 60... Qh4 {[%clk 0:00:03.3]}
61. Qh5 {[%clk 0:00:09.5]} 61... Qxf4 {[%clk 0:00:02.9]} 62. Qxf5+ {[%clk
0:00:09.8]} 62... Qxf5 {[%clk 0:00:03.1]} 63. Nxf5 {[%clk 0:00:10.7]} 63... Kxf5
{[%clk 0:00:04]} 64. Bg2 {[%clk 0:00:11.1]} 64... Kf4 {[%clk 0:00:04.3]} 65. Rb1
{[%clk 0:00:11]} 65... Ke3 {[%clk 0:00:04.2]} 66. Bf1 {[%clk 0:00:11.6]} 66...
Bb6 {[%clk 0:00:04.5]} 67. Kg2 {[%clk 0:00:12.2]} 67... Kd2 {[%clk 0:00:04.8]}
68. Rb3 {[%clk 0:00:12.1]} 68... h5 {[%clk 0:00:04.4]} 69. Rd3+ {[%clk 0:00:13]}
69... Kc2 {[%clk 0:00:03.8]} 70. Rh3 {[%clk 0:00:13.9]} 70... h4 {[%clk
0:00:02.5]} 71. Rxh4 {[%clk 0:00:14.1]} 71... Kc3 {[%clk 0:00:03.4]} 72. Rc4+
{[%clk 0:00:14.3]} 72... Kb3 {[%clk 0:00:03.4]} 73. b5 {[%clk 0:00:14.9]} 73...
Kb2 {[%clk 0:00:02.9]} 74. Rc6 {[%clk 0:00:15.8]} 74... Bd4 {[%clk 0:00:03.1]}
75. h4 {[%clk 0:00:16.6]} 75... Kb3 {[%clk 0:00:02.3]} 76. h5 {[%clk 0:00:17.2]}
76... Be3 {[%clk 0:00:02.9]} 77. h6 {[%clk 0:00:17.4]} 77... Bd4 {[%clk
0:00:03.5]} 78. h7 {[%clk 0:00:17.1]} 78... Kb2 {[%clk 0:00:04]} 79. Rd6 {[%clk
0:00:17.2]} 79... Bc3 {[%clk 0:00:03.8]} 80. Rh6 {[%clk 0:00:16.8]} 80... Kb3
{[%clk 0:00:03.7]} 81. h8=Q {[%clk 0:00:16.9]} 81... Kb4 {[%clk 0:00:04.6]} 82.
Rh4+ {[%clk 0:00:16.1]} 82... Kb3 {[%clk 0:00:04.7]} 83. Rh3 {[%clk 0:00:14.9]}
83... Ka4 {[%clk 0:00:04.2]} 84. Rxc3 {[%clk 0:00:13.4]} 84... Ka5 {[%clk
0:00:04.1]} 85. Qg7 {[%clk 0:00:11.6]} 85... Kb4 {[%clk 0:00:04.2]} 86. Rc7
{[%clk 0:00:11.1]} 86... Ka5 {[%clk 0:00:04.6]} 87. b6 {[%clk 0:00:11.7]} 87...
Kb4 {[%clk 0:00:03.6]} 88. b7 {[%clk 0:00:12.1]} 88... Ka3 {[%clk 0:00:03.8]}
89. b8=Q {[%clk 0:00:11.3]} 89... Ka4 {[%clk 0:00:03.3]} 90. Ra7# {[%clk
0:00:12.2]} 1-0

[Event "Late-Titled-Tuesday-Blitz-May-14-2024"]
[Site "Chess.com"]
[Date "2024.05.14"]
[Round "9"]
[White "ATM622"]
[Black "Meri-Arabidze"]
[Result "1/2-1/2"]
[WhiteElo "2559"]
[BlackElo "2680"]
[TimeControl "180+1"]
[EndTime "15:45:30 PDT"]
[Termination "Game drawn - insufficient material"]

1. d4 {[%clk 0:03:00.9]} 1... Nf6 {[%clk 0:02:59.7]} 2. c4 {[%clk 0:03:00.3]}
2... e6 {[%clk 0:03:00.2]} 3. g3 {[%clk 0:03:00.4]} 3... d5 {[%clk 0:02:59.5]}
4. Bg2 {[%clk 0:03:00]} 4... Be7 {[%clk 0:02:59.6]} 5. Nf3 {[%clk 0:02:59.9]}
5... O-O {[%clk 0:03:00.1]} 6. O-O {[%clk 0:02:59.6]} 6... dxc4 {[%clk
0:02:59.8]} 7. Ne5 {[%clk 0:02:59.5]} 7... Nc6 {[%clk 0:02:59.4]} 8. Bxc6 {[%clk
0:02:56.6]} 8... bxc6 {[%clk 0:02:59.8]} 9. Nxc6 {[%clk 0:02:57.5]} 9... Qe8
{[%clk 0:02:59.1]} 10. Nxe7+ {[%clk 0:02:57.5]} 10... Qxe7 {[%clk 0:03:00]} 11.
Qc2 {[%clk 0:02:58.3]} 11... e5 {[%clk 0:02:59.3]} 12. dxe5 {[%clk 0:02:54.7]}
12... Qxe5 {[%clk 0:03:00.2]} 13. Bf4 {[%clk 0:02:55.2]} 13... Qc5 {[%clk
0:02:47.1]} 14. Nd2 {[%clk 0:02:53.2]} 14... Ba6 {[%clk 0:02:37]} 15. Rac1
{[%clk 0:02:51.3]} 15... c3 {[%clk 0:02:34.6]} 16. Qxc3 {[%clk 0:02:49]} 16...
Qxc3 {[%clk 0:02:33.9]} 17. Rxc3 {[%clk 0:02:49.9]} 17... Nd5 {[%clk 0:02:33.4]}
18. Rc5 {[%clk 0:02:47.1]} 18... Nxf4 {[%clk 0:02:29.5]} 19. gxf4 {[%clk
0:02:48]} 19... Bxe2 {[%clk 0:02:29.5]} 20. Re1 {[%clk 0:02:46.7]} 20... Bg4
{[%clk 0:02:25.6]} 21. Rxc7 {[%clk 0:02:43.2]} 21... Be6 {[%clk 0:02:25.4]} 22.
a4 {[%clk 0:02:41.3]} 22... a5 {[%clk 0:02:24.1]} 23. Re5 {[%clk 0:02:39]} 23...
g6 {[%clk 0:02:15.1]} 24. Kg2 {[%clk 0:02:36.9]} 24... Rfb8 {[%clk 0:02:14]} 25.
Ne4 {[%clk 0:02:25.9]} 25... Rxb2 {[%clk 0:02:13.1]} 26. Nf6+ {[%clk 0:02:25.3]}
26... Kf8 {[%clk 0:01:58.4]} 27. Nxh7+ {[%clk 0:02:25.1]} 27... Kg8 {[%clk
0:01:51.9]} 28. Ng5 {[%clk 0:02:25.1]} 28... Ba2 {[%clk 0:01:38.2]} 29. Ree7
{[%clk 0:02:22.4]} 29... Rf8 {[%clk 0:01:32.8]} 30. Ra7 {[%clk 0:02:20.2]} 30...
Bd5+ {[%clk 0:01:30.4]} 31. Kg3 {[%clk 0:02:17.8]} 31... Rb3+ {[%clk 0:01:28.3]}
32. f3 {[%clk 0:02:15.6]} 32... Rc8 {[%clk 0:01:04.7]} 33. Rxa5 {[%clk 0:02:14]}
33... Bxf3 {[%clk 0:01:04.6]} 34. Nxf3 {[%clk 0:01:55.7]} 34... Rcc3 {[%clk
0:01:04.2]} 35. Ra8+ {[%clk 0:01:55.7]} 35... Kg7 {[%clk 0:01:04.1]} 36. Raa7
{[%clk 0:01:54.6]} 36... Rxf3+ {[%clk 0:01:02.2]} 37. Kg4 {[%clk 0:01:54.8]}
37... Rf2 {[%clk 0:00:40.6]} 38. Rxf7+ {[%clk 0:01:54.8]} 38... Kg8 {[%clk
0:00:41]} 39. Rfb7 {[%clk 0:01:47.8]} 39... Rg2+ {[%clk 0:00:35.9]} 40. Kh4
{[%clk 0:01:47.5]} 40... Rxh2+ {[%clk 0:00:36.2]} 41. Kg5 {[%clk 0:01:47.7]}
41... Rg2+ {[%clk 0:00:28.7]} 42. Kf6 {[%clk 0:01:46.8]} 42... Rxb7 {[%clk
0:00:28.3]} 43. Rxb7 {[%clk 0:01:47.7]} 43... Rg4 {[%clk 0:00:22.6]} 44. Rb4
{[%clk 0:01:41.3]} 44... g5 {[%clk 0:00:12.7]} 45. Rb8+ {[%clk 0:01:41.2]} 45...
Kh7 {[%clk 0:00:13.2]} 46. Rb7+ {[%clk 0:01:41.1]} 46... Kh8 {[%clk 0:00:02.7]}
47. Rb8+ {[%clk 0:01:41.1]} 47... Kh7 {[%clk 0:00:02.8]} 48. fxg5 {[%clk
0:01:41.2]} 48... Rf4+ {[%clk 0:00:02.8]} 49. Ke5 {[%clk 0:01:15.6]} 49... Rxa4
{[%clk 0:00:03.7]} 50. Kf5 {[%clk 0:01:02.1]} 50... Ra5+ {[%clk 0:00:03.8]} 51.
Kg4 {[%clk 0:01:01.7]} 51... Kg7 {[%clk 0:00:03.4]} 52. Kh5 {[%clk 0:01:01.2]}
52... Ra6 {[%clk 0:00:03.7]} 53. Rb7+ {[%clk 0:01:01]} 53... Kg8 {[%clk
0:00:04.1]} 54. Rc7 {[%clk 0:00:57.6]} 54... Rb6 {[%clk 0:00:04.3]} 55. Ra7
{[%clk 0:00:57.6]} 55... Rc6 {[%clk 0:00:04.4]} 56. Rd7 {[%clk 0:00:56.6]} 56...
Ra6 {[%clk 0:00:04.5]} 57. Rc7 {[%clk 0:00:56.7]} 57... Rb6 {[%clk 0:00:04.7]}
58. Ra7 {[%clk 0:00:56.2]} 58... Rc6 {[%clk 0:00:04.9]} 59. Ra1 {[%clk
0:00:51.9]} 59... Rb6 {[%clk 0:00:04.6]} 60. Rf1 {[%clk 0:00:50.5]} 60... Rc6
{[%clk 0:00:04.8]} 61. Re1 {[%clk 0:00:48.4]} 61... Rb6 {[%clk 0:00:04.8]} 62.
Kg4 {[%clk 0:00:39.3]} 62... Rb4+ {[%clk 0:00:04.4]} 63. Kh5 {[%clk 0:00:39.8]}
63... Rb6 {[%clk 0:00:04.5]} 64. Re8+ {[%clk 0:00:32.7]} 64... Kf7 {[%clk
0:00:04.2]} 65. Rh8 {[%clk 0:00:28.2]} 65... Kg7 {[%clk 0:00:04.5]} 66. Rd8
{[%clk 0:00:27.7]} 66... Ra6 {[%clk 0:00:04.4]} 67. Rb8 {[%clk 0:00:20.3]} 67...
Rc6 {[%clk 0:00:04]} 68. Rb7+ {[%clk 0:00:20.4]} 68... Kg8 {[%clk 0:00:03.8]}
69. Rd7 {[%clk 0:00:20.4]} 69... Rb6 {[%clk 0:00:03.8]} 70. Rc7 {[%clk
0:00:20.3]} 70... Ra6 {[%clk 0:00:04.2]} 71. Rb7 {[%clk 0:00:19.2]} 71... Rc6
{[%clk 0:00:04.2]} 72. Rb5 {[%clk 0:00:18.8]} 72... Ra6 {[%clk 0:00:04.2]} 73.
Rf5 {[%clk 0:00:18.9]} 73... Rb6 {[%clk 0:00:04.3]} 74. Rf4 {[%clk 0:00:08.2]}
74... Ra6 {[%clk 0:00:04.4]} 75. Kg4 {[%clk 0:00:08]} 75... Rb6 {[%clk
0:00:03.8]} 76. Re4 {[%clk 0:00:08.4]} 76... Ra6 {[%clk 0:00:04.1]} 77. Re5
{[%clk 0:00:08.5]} 77... Rb6 {[%clk 0:00:04]} 78. Kf5 {[%clk 0:00:08.9]} 78...
Kg7 {[%clk 0:00:03.3]} 79. Ra5 {[%clk 0:00:06.8]} 79... Rc6 {[%clk 0:00:03.2]}
80. Ra7+ {[%clk 0:00:07]} 80... Kg8 {[%clk 0:00:03.6]} 81. Re7 {[%clk
0:00:06.4]} 81... Ra6 {[%clk 0:00:03.5]} 82. g6 {[%clk 0:00:03]} 82... Ra1
{[%clk 0:00:03.4]} 83. Re8+ {[%clk 0:00:02.8]} 83... Kg7 {[%clk 0:00:03.5]} 84.
Re7+ {[%clk 0:00:03.7]} 84... Kg8 {[%clk 0:00:03.9]} 85. Rb7 {[%clk 0:00:03.8]}
85... Rf1+ {[%clk 0:00:03.4]} 86. Ke4 {[%clk 0:00:04.1]} 86... Re1+ {[%clk
0:00:03.7]} 87. Kf5 {[%clk 0:00:04.3]} 87... Rf1+ {[%clk 0:00:04]} 88. Ke6
{[%clk 0:00:04.4]} 88... Re1+ {[%clk 0:00:04.3]} 89. Kd5 {[%clk 0:00:04]} 89...
Rd1+ {[%clk 0:00:04.3]} 90. Ke4 {[%clk 0:00:03.7]} 90... Re1+ {[%clk 0:00:04.6]}
91. Kf3 {[%clk 0:00:03.6]} 91... Rg1 {[%clk 0:00:04.8]} 92. g7 {[%clk
0:00:02.8]} 92... Rxg7 {[%clk 0:00:04.6]} 93. Rxg7+ {[%clk 0:00:02.1]} 93...
Kxg7 {[%clk 0:00:05.5]} 1/2-1/2

[Event "Late-Titled-Tuesday-Blitz-May-14-2024"]
[Site "Chess.com"]
[Date "2024.05.14"]
[Round "9"]
[White "ChadBiryani"]
[Black "Kombinator01"]
[Result "0-1"]
[WhiteElo "2545"]
[BlackElo "2404"]
[TimeControl "180+1"]
[EndTime "15:45:38 PDT"]
[Termination "Kombinator01 won on time"]

1. d4 {[%clk 0:03:00.3]} 1... d5 {[%clk 0:02:41.9]} 2. Nc3 {[%clk 0:02:57.9]}
2... Nf6 {[%clk 0:02:38.7]} 3. Bf4 {[%clk 0:02:58.2]} 3... a6 {[%clk 0:02:34.3]}
4. e3 {[%clk 0:02:58.2]} 4... c5 {[%clk 0:02:34]} 5. Nf3 {[%clk 0:02:56.1]} 5...
cxd4 {[%clk 0:02:30.8]} 6. exd4 {[%clk 0:02:55.6]} 6... Nc6 {[%clk 0:02:30.6]}
7. Be2 {[%clk 0:02:50.6]} 7... Bg4 {[%clk 0:02:27.5]} 8. O-O {[%clk 0:02:50.4]}
8... e6 {[%clk 0:02:27.6]} 9. Na4 {[%clk 0:02:33.4]} 9... Be7 {[%clk 0:02:21.8]}
10. c3 {[%clk 0:02:28]} 10... O-O {[%clk 0:02:21.7]} 11. b4 {[%clk 0:02:18.4]}
11... Ne4 {[%clk 0:02:17.4]} 12. Qb3 {[%clk 0:02:09.5]} 12... Rc8 {[%clk
0:02:14.8]} 13. Nc5 {[%clk 0:02:03.5]} 13... Bxc5 {[%clk 0:02:10.2]} 14. bxc5
{[%clk 0:02:03.1]} 14... Qf6 {[%clk 0:01:56]} 15. Be3 {[%clk 0:01:59]} 15... Qe7
{[%clk 0:01:49.5]} 16. h3 {[%clk 0:01:48.9]} 16... Bh5 {[%clk 0:01:47.3]} 17.
Rab1 {[%clk 0:01:42.9]} 17... Rc7 {[%clk 0:01:41.1]} 18. Bf4 {[%clk 0:01:40.1]}
18... Rd7 {[%clk 0:01:34.9]} 19. Rb2 {[%clk 0:01:39.9]} 19... f6 {[%clk
0:01:31.5]} 20. Re1 {[%clk 0:01:39]} 20... Qf7 {[%clk 0:01:22.6]} 21. Nd2 {[%clk
0:01:31.9]} 21... Bxe2 {[%clk 0:01:17.7]} 22. Rxe2 {[%clk 0:01:30.5]} 22... Nxd2
{[%clk 0:01:16.2]} 23. Rbxd2 {[%clk 0:01:26.5]} 23... Na5 {[%clk 0:01:06.8]} 24.
Qb1 {[%clk 0:01:15.7]} 24... Nc4 {[%clk 0:01:07.2]} 25. Rd1 {[%clk 0:01:15.8]}
25... e5 {[%clk 0:01:03.3]} 26. Bg3 {[%clk 0:01:13.7]} 26... e4 {[%clk
0:01:01.6]} 27. f3 {[%clk 0:01:01.7]} 27... f5 {[%clk 0:01:01.5]} 28. fxe4
{[%clk 0:00:57.5]} 28... fxe4 {[%clk 0:00:54.6]} 29. Rf2 {[%clk 0:00:57.2]}
29... Qe8 {[%clk 0:00:53.2]} 30. Rdf1 {[%clk 0:00:47.2]} 30... Rdf7 {[%clk
0:00:52.1]} 31. Rxf7 {[%clk 0:00:32.9]} 31... Rxf7 {[%clk 0:00:52]} 32. Rxf7
{[%clk 0:00:33.6]} 32... Qxf7 {[%clk 0:00:52.5]} 33. c6 {[%clk 0:00:34.2]} 33...
bxc6 {[%clk 0:00:46.3]} 34. Qb8+ {[%clk 0:00:34]} 34... Qf8 {[%clk 0:00:46.4]}
35. Qc7 {[%clk 0:00:31.6]} 35... Qe8 {[%clk 0:00:45.6]} 36. Kh2 {[%clk
0:00:14.4]} 36... e3 {[%clk 0:00:45.6]} 37. h4 {[%clk 0:00:10.3]} 37... h6
{[%clk 0:00:45.5]} 38. Qf4 {[%clk 0:00:08.8]} 38... e2 {[%clk 0:00:45.4]} 39.
Be1 {[%clk 0:00:09.3]} 39... a5 {[%clk 0:00:38.7]} 40. a4 {[%clk 0:00:06.5]}
40... Qe7 {[%clk 0:00:29.5]} 41. h5 {[%clk 0:00:05.9]} 41... Qf7 {[%clk
0:00:26.6]} 42. Qb8+ {[%clk 0:00:05.6]} 42... Kh7 {[%clk 0:00:26.6]} 43. Qg3
{[%clk 0:00:05.9]} 43... Qxh5+ {[%clk 0:00:26.7]} 44. Kg1 {[%clk 0:00:05.5]}
44... Qg6 {[%clk 0:00:26.2]} 45. Qf3 {[%clk 0:00:05.1]} 45... h5 {[%clk
0:00:18.7]} 46. Qxe2 {[%clk 0:00:04.8]} 46... Qf5 {[%clk 0:00:16.3]} 47. Kh2
{[%clk 0:00:04.5]} 47... Qf4+ {[%clk 0:00:14.9]} 48. Bg3 {[%clk 0:00:04.6]}
48... Qe3 {[%clk 0:00:15.5]} 49. Qxh5+ {[%clk 0:00:04.6]} 49... Qh6 {[%clk
0:00:14.7]} 50. Qxh6+ {[%clk 0:00:03.8]} 50... Kxh6 {[%clk 0:00:15.6]} 51. Bc7
{[%clk 0:00:04.2]} 51... Kg6 {[%clk 0:00:15.6]} 52. Kg3 {[%clk 0:00:04.8]} 52...
Kf5 {[%clk 0:00:16.2]} 53. Kf3 {[%clk 0:00:05.2]} 53... g6 {[%clk 0:00:16]} 54.
g4+ {[%clk 0:00:05.4]} 54... Ke6 {[%clk 0:00:16.5]} 55. Kf4 {[%clk 0:00:05.6]}
55... Nb2 {[%clk 0:00:16.7]} 56. Bxa5 {[%clk 0:00:05.7]} 56... Nxa4 {[%clk
0:00:17.4]} 57. Kg5 {[%clk 0:00:05.6]} 57... Kf7 {[%clk 0:00:17.3]} 58. Kf4
{[%clk 0:00:05.9]} 58... Kf6 {[%clk 0:00:17.1]} 59. Bd8+ {[%clk 0:00:05.5]}
59... Ke6 {[%clk 0:00:17]} 60. Kg5 {[%clk 0:00:06.2]} 60... Nxc3 {[%clk
0:00:16.7]} 61. Kxg6 {[%clk 0:00:06.5]} 61... Ne2 {[%clk 0:00:17.1]} 62. Bb6
{[%clk 0:00:05.5]} 62... Nf4+ {[%clk 0:00:17]} 63. Kg5 {[%clk 0:00:06]} 63...
Nh3+ {[%clk 0:00:17]} 64. Kh4 {[%clk 0:00:06.1]} 64... Nf4 {[%clk 0:00:16.6]}
65. Kg5 {[%clk 0:00:06.4]} 65... Nh3+ {[%clk 0:00:16.7]} 66. Kh5 {[%clk
0:00:07.1]} 66... Kf6 {[%clk 0:00:16.4]} 67. Bd8+ {[%clk 0:00:07.3]} 67... Kg7
{[%clk 0:00:16.4]} 68. g5 {[%clk 0:00:07.6]} 68... Nf4+ {[%clk 0:00:16.5]} 69.
Kg4 {[%clk 0:00:07.9]} 69... Ne6 {[%clk 0:00:17]} 70. Bb6 {[%clk 0:00:08.2]}
70... Kg6 {[%clk 0:00:17.1]} 71. Ba7 {[%clk 0:00:04.8]} 71... Nxg5 {[%clk
0:00:17.4]} 72. Kf4 {[%clk 0:00:05.5]} 72... Nf7 {[%clk 0:00:17.6]} 73. Bc5
{[%clk 0:00:05]} 73... Kf6 {[%clk 0:00:17.8]} 74. Bb6 {[%clk 0:00:05.2]} 74...
Ke6 {[%clk 0:00:18.3]} 75. Bc5 {[%clk 0:00:05.5]} 75... Nd6 {[%clk 0:00:18.7]}
76. Ke3 {[%clk 0:00:05.7]} 76... Nc4+ {[%clk 0:00:18.3]} 77. Kf4 {[%clk
0:00:05.6]} 77... Na5 {[%clk 0:00:17.6]} 78. Bb6 {[%clk 0:00:03.3]} 78... Nb3
{[%clk 0:00:17.3]} 79. Kg5 {[%clk 0:00:03]} 79... Nd2 {[%clk 0:00:16.5]} 80. Kf4
{[%clk 0:00:02.8]} 80... Kd6 {[%clk 0:00:15.8]} 81. Bc5+ {[%clk 0:00:03.1]}
81... Kd7 {[%clk 0:00:15.9]} 82. Bb6 {[%clk 0:00:03.3]} 82... Nc4 {[%clk
0:00:15.8]} 83. Bc5 {[%clk 0:00:03.6]} 83... Nd2 {[%clk 0:00:15.2]} 84. Ke3
{[%clk 0:00:03.5]} 84... Ne4 {[%clk 0:00:14.8]} 85. Bb4 {[%clk 0:00:03.2]} 85...
Kc7 {[%clk 0:00:15.1]} 86. Kd3 {[%clk 0:00:02.8]} 86... Kb6 {[%clk 0:00:15.6]}
87. Be7 {[%clk 0:00:02.9]} 87... Kb5 {[%clk 0:00:15.9]} 88. Bf8 {[%clk
0:00:02.9]} 88... Nf6 {[%clk 0:00:15.2]} 89. Be7 {[%clk 0:00:03]} 89... Nd7
{[%clk 0:00:16.1]} 90. Bd6 {[%clk 0:00:03]} 90... Nb6 {[%clk 0:00:17]} 91. Bf8
{[%clk 0:00:03.2]} 91... Nc4 {[%clk 0:00:17.9]} 92. Kc3 {[%clk 0:00:03.6]} 92...
Ne3 {[%clk 0:00:16]} 93. Be7 {[%clk 0:00:03.8]} 93... Nf5 {[%clk 0:00:16]} 94.
Bf8 {[%clk 0:00:04.4]} 94... Ka4 {[%clk 0:00:16.4]} 95. Bc5 {[%clk 0:00:03.8]}
95... Kb5 {[%clk 0:00:15.7]} 96. Kd3 {[%clk 0:00:04.3]} 96... Ng7 {[%clk
0:00:15.4]} 97. Ke3 {[%clk 0:00:04.1]} 97... Ne6 {[%clk 0:00:16.3]} 98. Be7
{[%clk 0:00:04.5]} 98... Kc4 {[%clk 0:00:16.7]} 99. Bf6 {[%clk 0:00:04.2]} 99...
Kc3 {[%clk 0:00:16.5]} 100. Be5 {[%clk 0:00:04]} 100... Kc4 {[%clk 0:00:15.9]}
101. Bf6 {[%clk 0:00:04.5]} 101... c5 {[%clk 0:00:15.8]} 102. dxc5 {[%clk
0:00:04.7]} 102... Nxc5 {[%clk 0:00:16.7]} 103. Kd2 {[%clk 0:00:04.2]} 103...
Ne4+ {[%clk 0:00:17.2]} 104. Ke3 {[%clk 0:00:04.2]} 104... Nxf6 {[%clk
0:00:18.1]} 0-1